Cogmind - Beta 14 @@@ ROGUE MODE // 2024.10.06 @ 16:41:59 Player: siona Result: Destroyed by L-31 Rogue with Katana Performance ------------- Evolutions (1) 500 Regions Visited (3) 600 Robots Destroyed (40) 200 Value Destroyed (1111) 1111 Prototype IDs (0) 0 Alien Tech Used (0) 0 Bonus (175) 175 TOTAL SCORE: 2586 Bonus ------- High Alert Combat Kills 102 Follower Combat Kills 73 Cogmind --------- Core Integrity 0/400 Matter 245/300 Energy 96/100 System Corruption 0% Temperature Cool (0) Movement Core (350) Ox6 Location -9/Materials Parts ------- > --- POWER (1) -------- (None) > --- PROPULSION (3) --- (None) > --- UTILITY (3) ------ Large Storage Unit > --- WEAPON (2) ------- (None) > --- INVENTORY (15) --- VTOL Module VTOL Module VTOL Module VTOL Module Heat Sink Signal Interpreter Hacking Suite Hacking Suite Hacking Suite Peak State ------------ > --- POWER ------------ Ion Engine > --- PROPULSION ------- Wheel Wheel > --- UTILITY ---------- Cooling System Large Storage Unit Hardened Medium Armor Plating > --- WEAPON ----------- Heavy Assault Cannon > --- INVENTORY -------- Ion Engine Ion Engine VTOL Module VTOL Module VTOL Module VTOL Module Heat Sink Heat Sink Signal Interpreter Light Armor Plating Hacking Suite Hacking Suite EM Pulse Gun Particle Gun Beam Cannon [Rating: 17] Favorites ----------- Power Ion Engine Engine Ion Engine Propulsion Wheel Treads Improved Treads Leg Aluminum Leg Wheel Wheel Utility Large Storage Unit Device Heat Sink Storage Large Storage Unit Protection Hardened Medium Armor Plating Weapon Light Cannon Energy Gun EM Shotgun Energy Cannon Beam Cannon Ballistic Gun Light Assault Rifle Ballistic Cannon Light Cannon Launcher Grenade Launcher Build | -11 -10 -10 -9 ------- Run | Yrd Mat Min Mat Slots Evolved 2 | . . . 2 Power . | . . . . Propulsion 1 | . . . 1 Utility 1 | . . . 1 Weapon . | . . . . Parts Attached 34 | 5 13 1 15 Power 4 | 1 1 . 2 Engine 4 | 1 1 . 2 Core . | . . . . Reactor . | . . . . Propulsion 8 | 2 3 1 2 Treads 1 | . . . 1 Leg 1 | . . . 1 Wheel 6 | 2 3 1 . Hover . | . . . . Flight . | . . . . Utility 7 | . 3 . 4 Device 4 | . 2 . 2 Storage 1 | . 1 . . Processor . | . . . . Hackware . | . . . . Protection 2 | . . . 2 Artifact . | . . . . Weapon 15 | 2 6 . 7 Energy Gun 4 | . . . 4 Energy Cannon 1 | . . . 1 Ballistic Gun 2 | 2 . . . Ballistic Cannon 7 | . 6 . 1 Launcher 1 | . . . 1 Special Weapon . | . . . . Impact Weapon . | . . . . Slashing Weapon . | . . . . Piercing Weapon . | . . . . Special Melee Weapon . | . . . . Unidentified Prototypes . | . . . . Parts Lost 16 | . . . 16 Power 3 | . . . 3 Propulsion 4 | . . . 4 Utility 4 | . . . 4 Weapon 5 | . . . 5 Highest Loss Streak 4 | . . . 4 To Critical Strikes . | . . . . Average Slot Usage (%) 79 | . 91 100 62 Engine 11 | . 13 14 8 Treads 1 | . . . 3 Wheel 18 | . 25 28 8 Device 9 | . 10 14 6 Storage 12 | . 13 14 11 Protection 2 | . . . 6 Energy Gun 3 | . . . 7 Energy Cannon 1 | . . . 2 Ballistic Gun 1 | . 4 . . Ballistic Cannon 15 | . 23 28 5 Peak Build Rating 17 | 5 9 9 17 Average Rating 9 | 3 7 9 12 On Entrance 5 | . 5 9 9 Naked Turns . | . . . . Heaviest Build 47 | 7 32 32 47 Greatest Support 23 | 20 20 20 23 Greatest Overweight (x) 10 | . 10 1 10 Average Overweight (x) 1 | . 1 1 2 Largest Inventory Capacity 15 | 5 15 15 15 Average Capacity 14 | 5 14 15 15 Most Carried 15 | 2 15 15 15 Average Carried 11 | 1 10 14 12 Final Capacity 15 | 5 15 15 15 Final Carried 15 | 2 15 15 9 Class Distribution -------------------- 100% | Mutant Dominant Class ---------------- Mutant | -10/Materials Mutant | -10/Mines Mutant | -9/Materials Resources | -11 -10 -10 -9 ----------- Run | Yrd Mat Min Mat Matter Collected 1233 | 235 404 133 461 Remotely . | . . . . Salvage Created 1065 | . 471 . 594 Parts 74 | . 30 . 44 Haulers Intercepted 1 | . 1 . . Recyclers Shooed 1 | . 1 . . Parts Field Recycled . | . . . . Retrieved Matter . | . . . . Parts Self-Destructed . | . . . . Prevented . | . . . . Kills | -11 -10 -10 -9 ------- Run | Yrd Mat Min Mat Combat Hostiles Destroyed 28 | . 10 . 18 Guns 7 | . . . 7 Cannons 18 | . 10 . 8 AOE 3 | . . . 3 Classes Destroyed 11 | . 7 . 4 Worker 1 | . 1 . . Builder 2 | . . . 2 Tunneler 2 | . 1 . 1 Hauler 1 | . 1 . . Recycler 2 | . 2 . . Operator 3 | . 2 . 1 Watcher 1 | . . . 1 Swarmer 5 | . 2 . 3 Grunt 18 | . 8 . 10 Duelist 1 | . . . 1 Sentry 4 | . . . 4 Best Kill Streak 9 | . 3 . 9 Combat Bots Only 7 | . 3 . 7 Max Kills in Single Turn 2 | . 2 . 2 Gunslinging . | . . . . Exploded 1 | . . . 1 Melee . | . . . . Uniques/NPCs Destroyed . | . . . . Combat | -11 -10 -10 -9 -------- Run | Yrd Mat Min Mat Hostile Shots Fired 237 | . 35 . 202 Missed 67 | . 14 . 53 Damage Taken 2176 | . 252 . 1924 Core 467 | . 61 . 406 Absorbed by Shields . | . . . . Core Remaining (%) 87 | 100 . 75 . Volleys Fired 132 | . 50 . 82 Largest 2 | . 2 . 2 Hottest 125 | . 70 . 125 Shots Fired 198 | . 100 . 98 Gun 49 | . 6 . 43 Cannon 145 | . 94 . 51 Launcher 4 | . . . 4 Special . | . . . . Kinetic 140 | . 100 . 40 Thermal 37 | . . . 37 Explosive 4 | . . . 4 Electromagnetic 17 | . . . 17 Robot Hit Streak 11 | . 9 . 11 Robot Miss Streak 4 | . 4 . 4 Penetration Max . | . . . . Secondary Targets . | . . . . Shots Hit Robots 124 | . 56 . 68 Core Hits 51 | . 18 . 33 Critical Kills . | . . . . Critical Parts Destroyed . | . . . . Critical Strikes 9 | . 4 . 5 Burn 1 | . . . 1 Blast 8 | . 4 . 4 Melee Attacks . | . . . . Impact . | . . . . Slashing . | . . . . Piercing . | . . . . Sneak Attacks . | . . . . Combat Hostiles . | . . . . Follow-up Attacks . | . . . . Damage Inflicted 3323 | . 932 . 2391 Guns 432 | . 6 . 426 Cannons 2526 | . 926 . 1600 Explosions 365 | . . . 365 Melee . | . . . . Ramming . | . . . . Kinetic 2409 | . 932 . 1477 Thermal 478 | . . . 478 Explosive 274 | . . . 274 Electromagnetic 162 | . . . 162 Impact . | . . . . Slashing . | . . . . Piercing . | . . . . Highest Corruption . | . . . . Average Corruption . | . . . . Corruption Purged . | . . . . Corruption Blocked . | . . . . Overload Shots . | . . . . Overflow Damage 140 | . 4 . 136 Projectiles 130 | . 4 . 126 Explosions 10 | . . . 10 Melee . | . . . . Knockbacks 18 | . 15 . 3 Impact . | . . . . Kinetic 17 | . 14 . 3 Secondary 1 | . 1 . . Self-Inflicted Damage 71 | . . . 71 Shots 4 | . . . 4 Rammed . | . . . . Targets Rammed . | . . . . Kicked . | . . . . Crushed . | . . . . Highest Temperature 504 | . 81 . 504 Average Temperature 95 | . 33 . 108 Received Heat Transfer 837 | . 150 . 687 Effects 4 | . . . 4 Shutdowns 1 | . . . 1 Matter Decay 2 | . . . 2 Short Circuit 1 | . . . 1 Siege Activations . | . . . . Robots Corrupted . | . . . . Combat Hostiles . | . . . . Parts Fried 1 | . . . 1 Impact Corruptions . | . . . . Robots Melted . | . . . . Combat Hostiles . | . . . . Parts Melted 2 | . . . 2 Heat Transferred 1112 | . . . 1112 Parts Sabotaged . | . . . . Parts Stolen . | . . . . Parts Stripped . | . . . . Power Chain Reactions 1 | . . . 1 Alert | -11 -10 -10 -9 ------- Run | Yrd Mat Min Mat Peak Influence 569 | . 347 135 569 Initial 135 | . . 135 52 Average 263 | . 181 135 387 Maximum Alert Level 2 | . 1 . 2 Low Security (%) 41 | 100 51 100 12 Level 1 33 | . 48 . 32 Level 2 24 | . . . 54 Level 3 . | . . . . Level 4 . | . . . . Level 5 . | . . . . High Security . | . . . . Max Security . | . . . . Squads Dispatched 7 | . 2 . 5 Investigation . | . . . . Extermination . | . . . . Reinforcement 7 | . 2 . 5 Assault . | . . . . Garrison . | . . . . Intercept . | . . . . Searches Triggered . | . . . . Construction Impeded 1 | . . . 1 Haulers Reinforced . | . . . . Active Scanning Responses . | . . . . Cargo Convoy Interrupts . | . . . . Stealth | -11 -10 -10 -9 --------- Run | Yrd Mat Min Mat Distress Signals 4 | . 1 . 3 Communications Jammed . | . . . . Distress Signals . | . . . . Times Spotted 54 | . 21 . 33 Peak Tracking Total 7 | . 4 . 7 Tactical Retreats 7 | . 4 . 3 Traps | -11 -10 -10 -9 ------- Run | Yrd Mat Min Mat Traps Triggered 3 | . 2 . 1 Indirectly . | . . . . Trap Hack Attempts . | . . . . Triggered . | . . . . Disarmed . | . . . . Reprogrammed . | . . . . Reused . | . . . . Traps Extracted . | . . . . Installed . | . . . . Triggered . | . . . . Machines | -11 -10 -10 -9 ---------- Run | Yrd Mat Min Mat Machines Disabled 8 | . 5 . 3 Max in Single Turn 1 | . 1 . 1 Machines Repaired . | . . . . Machines Dismantled . | . . . . Machines Sabotaged . | . . . . Overloaded Fab Kills . | . . . . Hacking | -11 -10 -10 -9 --------- Run | Yrd Mat Min Mat Machines Accessed . | . . . . Terminals . | . . . . Fabricators . | . . . . Repair Stations . | . . . . Recycling Units . | . . . . Scanalyzers . | . . . . Garrison Access . | . . . . Total Hacks . | . . . . Successful . | . . . . Failed . | . . . . Catastrophic . | . . . . Database Lockouts . | . . . . Manual . | . . . . Terminals . | . . . . Fabricators . | . . . . Repair Stations . | . . . . Recycling Units . | . . . . Scanalyzers . | . . . . Garrison Access . | . . . . Terminal Hacks . | . . . . Fabricator Hacks . | . . . . Repair Station Hacks . | . . . . Recycling Unit Hacks . | . . . . Scanalyzer . | . . . . Garrison Access Hacks . | . . . . Unauthorized Hacks . | . . . . Terminals . | . . . . Fabricators . | . . . . Repair Stations . | . . . . Recycling Units . | . . . . Scanalyzers . | . . . . Garrison Access . | . . . . Data Cores Recovered . | . . . . Used . | . . . . Hacking Detections . | . . . . Full Trace Events . | . . . . Feedback Events . | . . . . Feedback Blocked . | . . . . Robot Schematics Acquired . | . . . . Robots Built . | . . . . Authchips . | . . . . Time . | . . . . Total Robot Build Rating . | . . . . Part Schematics Acquired . | . . . . Parts Built . | . . . . Authchips . | . . . . Time . | . . . . Total Part Build Rating . | . . . . Parts Repaired . | . . . . Time . | . . . . Parts Recycled . | . . . . Recycled Matter . | . . . . Retrieved Matter . | . . . . Retrieved Components . | . . . . Parts Scanalyzed . | . . . . Part Schematics Acquired . | . . . . Parts Damaged . | . . . . Bothacking | -11 -10 -10 -9 ------------ Run | Yrd Mat Min Mat Used RIF Installer . | . . . . Robots Hacked . | . . . . Non-combat . | . . . . Combat . | . . . . Robot Hacks Applied . | . . . . Relay Couplers Released . | . . . . Fabnet Peak Effective % . | . . . . Robots Rewired . | . . . . Allies Hacked . | . . . . Hacks Repelled . | . . . . Allies | -11 -10 -10 -9 -------- Run | Yrd Mat Min Mat Total Allies 3 | . . 3 . Largest Group 3 | . . 3 2 Highest-Rated Group 40 | . . 40 32 Highest-Rated Ally 16 | . . 16 16 Total Orders 1 | . . . 1 ROAM 1 | . . . 1 Ally Attacks 24 | . . . 24 Total Damage 242 | . . . 242 Kills 5 | . . . 5 Allies Corrupted . | . . . . Allies Melted . | . . . . Intel | -11 -10 -10 -9 ------- Run | Yrd Mat Min Mat Robot Analysis Total . | . . . . Derelict Logs Recovered 2 | . . 2 . Drone Launches . | . . . . Drone Recoveries . | . . . . Exploration | -11 -10 -10 -9 ------------- Run | Yrd Mat Min Mat Turns Passed 1797 | 39 698 250 810 Spaces Moved 1082 | 38 461 259 324 Core 15 | 1 6 . 8 Treads 55 | . . . 55 Legs 28 | . . . 28 Wheels 984 | 37 455 259 233 Hover . | . . . . Flight . | . . . . Fastest Speed 50 | 50 80 95 95 Average Speed 116 | 79 98 95 163 Slowest Speed 550 | 80 550 95 550 Overloaded Moves . | . . . . Propulsion Burnouts . | . . . . Robots Hopped . | . . . . Cave-ins Triggered . | . . . . Exploration Rate (%) 40 | 2 62 64 33 Regions Visited 3 Branch Regions 1 Pre-discovered Areas . | . . . . Known Exits Taken . | . . . . Unknown Exits Taken 3 | 1 1 1 . Scrap Searched 1 | . . 1 . Spaces Dug . | . . . . Terrain Destroyed 41 | . . . 41 Melee . | . . . . Projectile 14 | . . . 14 AOE 27 | . . . 27 Terrain Rammed . | . . . . Walls Destroyed . | . . . . Machines Disabled . | . . . . Actions | -11 -10 -10 -9 --------- Run | Yrd Mat Min Mat Total 1397 | 44 602 264 487 Wait 120 | . 63 . 57 Move 1079 | 37 460 258 324 Hop . | . . . . Pick Up 20 | 2 13 2 3 Fast Attach 19 | 5 8 . 6 Attach 8 | . . . 8 Detach . | . . . . Swap 7 | . 5 1 1 Drop 12 | . 3 3 6 Fire 132 | . 50 . 82 Melee . | . . . . Ram . | . . . . Kick . | . . . . Crush . | . . . . Escape Stasis . | . . . . Rewire . | . . . . Trap . | . . . . Miscellaneous . | . . . . Route ------- -11/Scrapyard -10/Materials (discovered 2 exits: *Mat / [*Min]) -10/Mines -9/Materials (discovered 1 exit: Mat) History --------- Turn | Location | Event 19 | -11/Scrapyard | Discovered new exit (range 15) 40 | -11/Scrapyard | Entered Materials 131 | -10/Materials | Discovered new exit (range 15) 307 | -10/Materials | Build established: Mutant 649 | -10/Materials | Discovered new exit (range 13) 738 | -10/Materials | Entered Mines 752 | -10/Mines | Learned location of 1 exit from Materials 928 | -10/Mines | Found DCF Scrap (13 items) 952 | -10/Mines | Discovered new exit (range 14) 975 | -10/Mines | Assisted by bots powering up and referring to "LRC-V3" 988 | -10/Mines | Entered Materials 988 | -9/Materials | Accompanied by 2 allies 988 | -9/Materials | Evolved 2 slots: Propulsion x1, Utility x1 989 | -9/Materials | Identified exit to Materials 1241 | -9/Materials | Destroyed 7 combat bots 1487 | -9/Materials | Lost 4 parts (1p1n2u) 1499 | -9/Materials | Core integrity fell below 50% 1708 | -9/Materials | Core integrity fell below 20% 1723 | -9/Materials | Lost 4 parts (1p1n2w) 1798 | -9/Materials | Destroyed by L-31 Rogue with Katana Last Messages --------------- 01728_ U-05 Engineer lays Concrete. 01730_ G-34 Mercenary destroyed. 01730_ U-05 Engineer lays Concrete. 01731_ U-05 Engineer builds a Wall. 01733_ U-05 Engineer lays Concrete. 01734_ U-05 Engineer builds a Wall. 01734_ U-05 Engineer lays Concrete. 01736_ U-05 Engineer destroyed. 01740_ U-05 Engineer builds a Wall. 01786_ K-01 Serf collects debris. 01788_ C-30 ARC bursts open, deploying its payload. 01788_ L-31 Rogue unfolds itself. 01788_ G-34 Mercenary unfolds itself. 01789_ K-01 Serf collects debris. 01791_ Grenade Launcher destroyed. 01792_ K-01 Serf collects debris. 01793_ EM Shotgun destroyed. 01796_ K-01 Serf collects debris. 01798_ Aluminum Leg destroyed. Map ----- +----------------------------------------------------+ | ?????????????????????????????????????????????????? | | ?????????????????????????????????????????????????? | | ?????????????????????????????????????????????????? | | ?????????????????????????????????????????????????? | | ?????????????????????????????????????????????????? | | ???????????????????????????????